bitfinex/quotes_BTCUSD_20250118
["timestamp","ask_amount","ask_price","bid_price","bid_amount"]
[1737208267448,0.97633865,103830.0,103820.0,0.99369642]
[1737208269417,0.77456763,103830.0,103820.0,0.99369642]
[1737208270021,0.45444961,103830.0,103820.0,1.01669642]
[1737208270221,0.52462063,103830.0,103820.0,1.09379642]
[1737208270827,0.74067921,103830.0,103820.0,1.09379642]
[1737208271398,0.77740894,103830.0,103820.0,1.09379642]
[1737208271921,0.8214566,103830.0,103820.0,1.09379642]
[1737208272445,0.8214566,103830.0,103820.0,1.23949642]
[1737208274246,0.79870701,103830.0,103820.0,1.23949642]
[1737208275241,0.79870701,103830.0,103820.0,1.13939642]
[1737208275547,0.66825111,103830.0,103820.0,1.13939642]
[1737208276341,0.56135036,103830.0,103820.0,1.13939642]
[1737208278165,0.69209425,103830.0,103820.0,1.13939642]
[1737208279133,0.51911039,103830.0,103820.0,1.13939642]
[1737208280182,0.77758019,103830.0,103820.0,1.13939642]
[1737208280360,0.77758019,103830.0,103820.0,1.13951342]
[1737208282952,0.77758019,103830.0,103820.0,0.99381342]
[1737208283700,0.56135036,103830.0,103820.0,0.99381342]
[1737208285325,0.66825111,103830.0,103820.0,0.99381342]
[1737208287431,0.95902964,103830.0,103820.0,0.99381342]
[1737208289034,1.03922964,103830.0,103820.0,0.99381342]
[1737208289443,1.4865653,103830.0,103820.0,0.99381342]
[1737208290971,1.2280955,103830.0,103820.0,0.99381342]
[1737208291771,0.78075984,103830.0,103820.0,0.99381342]
[1737208292234,0.82995984,103830.0,103820.0,0.99381342]
[1737208292984,1.2772955,103830.0,103820.0,0.99381342]
[1737208293336,1.20385444,103830.0,103820.0,0.99381342]
[1737208294124,0.98671736,103830.0,103820.0,0.99381342]
[1737208294568,1.03099954,103830.0,103820.0,0.99381342]
[1737208295840,1.03099954,103830.0,103820.0,0.51210293]
[1737208296039,0.98671736,103830.0,103820.0,0.51210293]
[1737208296582,0.79899557,103830.0,103820.0,0.51210293]
[1737208297122,0.94553434,103830.0,103820.0,0.51210293]
[1737208297328,1.24553434,103830.0,103820.0,0.51210293]
[1737208297525,1.34477515,103830.0,103820.0,0.51210293]
[1737208298861,0.94553434,103830.0,103820.0,0.51210293]
[1737208299275,1.24553434,103830.0,103820.0,0.51210293]
[1737208299464,0.87535412,103830.0,103820.0,0.51210293]
[1737208299668,0.89421295,103830.0,103820.0,0.51210293]
[1737208299869,0.96439317,103830.0,103820.0,0.51210293]
[1737208300287,1.06363398,103830.0,103820.0,0.51210293]
[1737208301098,0.80402011,103830.0,103820.0,0.51210293]
[1737208302311,1.10402011,103830.0,103820.0,0.51210293]
[1737208302930,1.0047793,103830.0,103820.0,0.51210293]
[1737208303455,1.00815538,103830.0,103820.0,0.51210293]
[1737208303651,1.26776925,103830.0,103820.0,0.51210293]
[1737208304165,1.27352925,103830.0,103820.0,0.51210293]
[1737208307345,1.46060925,103830.0,103820.0,0.51210293]
[1737208307548,1.55985006,103830.0,103820.0,0.51210293]
[1737208311288,1.55409006,103830.0,103820.0,0.51210293]
[1737208311494,1.55985006,103830.0,103820.0,0.41578293]
[1737208312167,1.55985006,103830.0,103820.0,0.33872693]
[1737208312371,1.55985006,103830.0,103820.0,0.31946293]
[1737208313274,1.55985006,103830.0,103820.0,0.26167093]
[1737208313512,1.55985006,103830.0,103820.0,0.22314293]
[1737208313645,1.85139496,103830.0,103820.0,0.22314293]
[1737208314054,1.85139496,103830.0,103820.0,0.18461493]
[1737208314427,1.85139496,103830.0,103820.0,0.12682293]
[1737208314628,1.55985006,103830.0,103820.0,0.12682293]
[1737208315011,1.55985006,103830.0,103820.0,0.10755893]
[1737208315515,1.55985006,103830.0,103820.0,0.03050293]
[1737208315890,1.3722168,103830.0,103820.0,0.03050293]
[1737208316093,1.3722168,103830.0,103820.0,9.3e-07]
[1737208316743,1.3722168,103830.0,103820.0,7.3e-07]
[1737208317045,1.40470109,103830.0,103820.0,7.3e-07]
[1737208317933,0.88814574,103810.0,103800.0,0.09733157]
[1737208318069,1.08662736,103810.0,103800.0,0.09738196]
[1737208319861,1.08662736,103810.0,103800.0,0.09729351]
[1737208320389,1.08662736,103810.0,103800.0,0.03948951]
[1737208320593,0.289017,103800.0,103790.0,0.03948951]
[1737208320813,0.58027618,103800.0,103790.0,0.03948951]
[1737208321054,0.68723455,103800.0,103790.0,0.03948951]
[1737208321398,0.76855204,103800.0,103790.0,0.11668951]
[1737208321599,0.70804155,103800.0,103790.0,0.16218951]
[1737208322073,0.70804155,103800.0,103790.0,0.16210108]
[1737208322453,0.96701958,103800.0,103790.0,0.16210108]
[1737208323085,0.86707258,103800.0,103790.0,0.11660108]
[1737208323517,0.86707258,103800.0,103790.0,0.03940108]
[1737208323723,0.99639039,103800.0,103790.0,0.03940108]
[1737208324108,1.02921446,103800.0,103790.0,0.03940108]
[1737208324280,0.346295,103790.0,103780.0,0.16210108]
[1737208324484,0.55249418,103790.0,103780.0,0.16210108]
[1737208326421,0.45614618,103790.0,103750.0,0.0576908]
[1737208326623,0.10695837,103760.0,103750.0,0.119383]
[1737208327951,0.20333437,103760.0,103750.0,0.120786]
[1737208329448,0.20333437,103760.0,103750.0,0.243486]
[1737208331347,0.20333437,103760.0,103750.0,0.147103]
[1737208332770,0.30257518,103760.0,103750.0,0.147103]
[1737208333218,0.30257518,103760.0,103750.0,0.14701457]
[1737208334320,0.30257518,103760.0,103750.0,0.124103]
[1737208335412,0.33610651,103760.0,103750.0,0.124103]
[1737208337386,0.30267132,103760.0,103750.0,0.124103]
[1737208340206,0.30309962,103760.0,103750.0,0.124103]
[1737208342832,0.30309962,103760.0,103750.0,0.078603]
[1737208343189,0.30309962,103760.0,103750.0,0.001403]
[1737208344099,0.30309962,103760.0,103750.0,0.081103]
[1737208345547,0.30309962,103760.0,103750.0,0.001403]
[1737208346209,0.20672362,103760.0,103740.0,0.2195958]
[1737208346432,0.20343951,103750.0,103740.0,0.24274804]
[1737208346648,0.10705451,103750.0,103740.0,0.24274804]
[1737208347102,0.20343951,103750.0,103740.0,0.24274804]
[1737208347351,0.20343951,103750.0,103740.0,0.24544624]
[1737208352202,0.20343951,103750.0,103740.0,0.24634567]
[1737208353425,0.20343951,103750.0,103740.0,0.14995167]
[1737208353979,0.20343951,103750.0,103740.0,0.24634567]
[1737208355171,0.10705451,103750.0,103740.0,0.24634567]
[1737208356898,0.20343951,103750.0,103740.0,0.24634567]
[1737208357806,0.30268032,103750.0,103740.0,0.08075167]
[1737208357943,0.30268032,103750.0,103740.0,0.09744567]
[1737208359508,0.26588547,103750.0,103740.0,0.09744567]
[1737208359913,0.60444568,103760.0,103750.0,0.392385]
[1737208360131,0.60444568,103760.0,103750.0,0.492385]
[1737208360255,0.51816694,103760.0,103750.0,0.66188547]
[1737208360603,0.51816694,103760.0,103750.0,0.59162581]
[1737208360832,0.51816694,103760.0,103750.0,0.62137508]
[1737208361536,0.51816694,103760.0,103750.0,0.49162581]
[1737208361913,0.0004283,103760.0,103750.0,1.00333507]
[1737208362662,0.0004283,103760.0,103750.0,0.49162581]
[1737208364001,0.0004283,103760.0,103750.0,0.59162581]
[1737208364325,0.0004283,103760.0,103750.0,0.69162581]
[1737208364722,0.0004283,103760.0,103750.0,0.79862305]
[1737208365399,0.0004283,103760.0,103750.0,0.69862305]
[1737208366231,0.0004283,103760.0,103750.0,0.79862305]
[1737208366855,0.0004283,103760.0,103750.0,0.69862305]
[1737208367036,0.0004283,103760.0,103750.0,0.78407103]
[1737208367393,0.0004283,103760.0,103750.0,0.88407103]
[1737208367619,0.0004283,103760.0,103750.0,0.78407103]
[1737208368175,0.0004283,103760.0,103750.0,0.69862305]
[1737208368382,0.20380154,103760.0,103750.0,0.271885]
[1737208368589,0.10742554,103760.0,103740.0,1.17165034]
[1737208368946,0.10742554,103760.0,103740.0,1.06573654]
[1737208369105,0.10742554,103760.0,103740.0,1.16212154]
[1737208369295,0.39655554,103760.0,103740.0,1.16212154]
[1737208369748,0.20380354,103760.0,103740.0,1.16212154]
[1737208370085,0.20380354,103760.0,103740.0,0.56398567]
[1737208370460,0.20380354,103760.0,103750.0,0.023]
[1737208371877,0.49580635,103760.0,103740.0,0.09744567]
[1737208372059,0.10699724,103750.0,103740.0,0.09744567]
[1737208372273,0.58156911,103760.0,103740.0,0.09744567]
[1737208372274,0.0004283,103760.0,103750.0,0.023]
[1737208372500,0.0004283,103760.0,103750.0,0.55058965]
[1737208372708,0.0004283,103760.0,103750.0,0.59902581]
[1737208373459,0.0004283,103760.0,103750.0,0.49902581]
[1737208378342,8.352e-05,103760.0,103750.0,0.49902581]
[1737208380509,8.352e-05,103760.0,103750.0,0.50873051]
[1737208385543,8.352e-05,103760.0,103750.0,0.50962994]
[1737208387651,8.352e-05,103760.0,103750.0,0.46022994]
[1737208390784,8.352e-05,103760.0,103750.0,0.37922994]
[1737208392004,8.352e-05,103760.0,103750.0,0.27998913]
[1737208393757,8.352e-05,103760.0,103750.0,0.25698913]
[1737208394132,8.352e-05,103760.0,103750.0,0.27998913]
[1737208397483,0.10708076,103760.0,103750.0,0.27998913]
[1737208397740,0.07988352,103760.0,103750.0,0.12998913]
[1737208399645,0.07988352,103760.0,103750.0,0.12028443]
[1737208403366,8.352e-05,103760.0,103750.0,0.19738443]
[1737208403636,8.352e-05,103760.0,103750.0,0.65458624]
[1737208403808,8.352e-05,103760.0,103750.0,0.44662524]
[1737208404801,8.352e-05,103760.0,103750.0,0.54662524]
[1737208405019,8.352e-05,103760.0,103750.0,0.44662524]
[1737208405401,8.352e-05,103760.0,103750.0,0.53207322]
[1737208406239,8.352e-05,103760.0,103750.0,0.63207322]
[1737208406458,8.352e-05,103760.0,103750.0,0.53207322]
[1737208406780,8.352e-05,103760.0,103750.0,0.63207322]
[1737208406896,8.352e-05,103760.0,103750.0,0.53207322]
[1737208407981,8.352e-05,103760.0,103750.0,0.44662524]
[1737208408197,8.352e-05,103760.0,103750.0,0.47633594]
[1737208408319,8.352e-05,103760.0,103750.0,0.44662524]
[1737208408975,8.352e-05,103760.0,103750.0,0.53207322]
[1737208410503,8.352e-05,103760.0,103750.0,0.44662524]
[1737208412376,8.352e-05,103760.0,103750.0,0.36952524]
[1737208413259,0.07728352,103760.0,103750.0,0.24728443]
[1737208418277,8.352e-05,103760.0,103750.0,0.24728443]
[1737208418505,8.352e-05,103760.0,103750.0,0.25728443]
[1737208426213,8.352e-05,103760.0,103750.0,0.56242524]
[1737208426557,8.352e-05,103760.0,103750.0,0.46242524]
[1737208426778,0.38849207,103780.0,103770.0,0.1829]
[1737208427112,0.42911313,103790.0,103780.0,0.319357]
[1737208427278,0.40352572,103790.0,103780.0,0.68139505]
[1737208427647,0.40352572,103790.0,103780.0,0.71105877]
[1737208427890,0.0004281,103800.0,103790.0,0.319348]
[1737208428071,0.0004281,103800.0,103790.0,0.52558605]
[1737208429235,0.0004281,103800.0,103790.0,0.74760239]
[1737208430032,0.0004281,103800.0,103790.0,0.89760239]
[1737208430376,0.0004281,103800.0,103790.0,0.58191281]
[1737208431905,0.0004281,103800.0,103790.0,0.45391841]
[1737208433465,0.0004281,103800.0,103790.0,0.36858881]
[1737208433626,0.0004281,103800.0,103790.0,0.378318]
[1737208434286,0.0004281,103800.0,103790.0,0.39737924]
[1737208441071,0.0004281,103800.0,103790.0,0.50437648]
[1737208442132,0.0815,103820.0,103790.0,0.40802848]
[1737208442323,0.08200368,103820.0,103810.0,0.346329]
[1737208444509,0.00050368,103820.0,103810.0,0.369329]
[1737208445349,0.00050368,103820.0,103810.0,0.57556705]
[1737208445552,0.00050368,103820.0,103810.0,0.67556705]
[1737208445773,0.00050368,103820.0,103810.0,0.68124705]
[1737208446821,0.00050368,103820.0,103810.0,0.58124705]
[1737208447042,0.00050368,103820.0,103810.0,0.47424981]
[1737208447244,0.00050368,103820.0,103810.0,0.46856981]
[1737208447431,0.00050368,103820.0,103810.0,0.47424981]
[1737208448399,0.00050368,103820.0,103810.0,0.68124705]
[1737208449698,0.00050368,103820.0,103810.0,0.58124705]
[1737208450233,0.00050368,103820.0,103810.0,0.47424981]
[1737208451392,0.00050368,103820.0,103810.0,0.38389372]
[1737208451611,0.00050368,103820.0,103810.0,0.48389372]
[1737208453022,0.00050368,103820.0,103810.0,0.50342998]
[1737208454335,0.00093148,103820.0,103810.0,0.50342998]
[1737208455122,0.00093148,103820.0,103810.0,0.49774998]
[1737208458542,0.00093148,103820.0,103810.0,0.39774998]
[1737208459114,0.00093148,103820.0,103810.0,0.49774998]
[1737208461916,0.07893148,103820.0,103810.0,0.37821372]
[1737208465413,0.07893148,103820.0,103810.0,0.27897291]
[1737208472872,0.00093148,103820.0,103810.0,0.37821372]
[1737208473898,0.00093148,103820.0,103810.0,0.90631414]
[1737208475304,0.00093148,103820.0,103810.0,1.20526371]
[1737208477786,0.00093148,103820.0,103810.0,1.29054364]
[1737208478938,0.00093148,103820.0,103810.0,1.20526371]
[1737208481282,0.00093148,103820.0,103810.0,1.2905826]
[1737208482531,0.00093148,103820.0,103810.0,1.20526371]
[1737208483628,0.00093148,103820.0,103810.0,1.2349102]
[1737208483978,0.00093148,103820.0,103810.0,1.20526371]
[1737208484578,0.00093148,103820.0,103810.0,1.10691495]
[1737208485167,0.00093148,103820.0,103810.0,1.07726931]
[1737208485542,0.00093148,103820.0,103810.0,1.10690811]
[1737208485895,0.00093148,103820.0,103810.0,1.07726931]
[1737208489576,0.12543148,103820.0,103810.0,0.9780285]
[1737208490552,0.12543148,103820.0,103810.0,1.19128028]
[1737208491979,0.12543148,103820.0,103810.0,0.97766032]
[1737208495203,0.12543148,103820.0,103810.0,1.19128028]
[1737208496518,0.12543148,103820.0,103810.0,0.97766032]
[1737208497746,0.12543148,103820.0,103810.0,0.95466032]
[1737208498031,0.12543148,103820.0,103810.0,1.16828028]
[1737208498848,0.19556507,103820.0,103810.0,0.78400111]
[1737208499256,0.19556507,103820.0,103810.0,0.63400111]
[1737208499648,0.19556507,103820.0,103810.0,0.78400111]
[1737208500112,0.19461915,103820.0,103810.0,0.78400111]
[1737208501142,0.19461915,103820.0,103810.0,0.6243572]
[1737208501548,0.19461915,103820.0,103810.0,0.18162971]
[1737208502399,0.12448556,103820.0,103810.0,0.18162971]
[1737208502599,0.12448556,103820.0,103810.0,0.096329]
[1737208502913,0.12491336,103820.0,103810.0,0.096329]
[1737208503079,0.12491336,103820.0,103810.0,0.09729222]
[1737208503994,0.12491336,103820.0,103810.0,0.28259293]
[1737208504221,0.12491336,103820.0,103810.0,0.28162971]
[1737208504386,0.12491336,103820.0,103810.0,0.33162971]
[1737208504863,0.0004278,103820.0,103810.0,0.63344766]
[1737208505040,0.0004278,103820.0,103810.0,0.46331407]
[1737208505189,0.0004278,103820.0,103810.0,0.56331407]
[1737208506341,0.0004278,103820.0,103810.0,1.17675328]
[1737208506948,0.0004278,103820.0,103810.0,1.07675328]
[1737208507155,0.0004278,103820.0,103810.0,0.97751247]
[1737208512527,0.0004278,103820.0,103810.0,1.07751247]
[1737208512846,0.0004278,103820.0,103810.0,0.90609407]
[1737208513026,0.0004278,103820.0,103810.0,1.2129576]
[1737208513190,8e-07,103830.0,103820.0,0.223]
[1737208513397,7.6e-07,103830.0,103820.0,0.78796867]
[1737208514031,7.6e-07,103830.0,103820.0,0.58110514]
[1737208514257,7.6e-07,103830.0,103820.0,0.78796867]
[1737208514471,0.07780076,103830.0,103820.0,0.37520514]
[1737208514785,0.07780076,103830.0,103820.0,0.26932]
[1737208515507,0.07780076,103830.0,103820.0,0.84049288]
[1737208515799,0.07776076,103830.0,103820.0,0.84049288]
[1737208516553,0.0492,103850.0,103830.0,0.15]
[1737208516760,0.0492,103850.0,103840.0,0.096302]
[1737208517013,0.0492,103850.0,103840.0,0.288899]
[1737208518779,0.127,103850.0,103840.0,0.288899]
[1737208521556,0.127,103850.0,103840.0,0.438899]
[1737208524040,0.127,103850.0,103840.0,0.44848528]
[1737208525854,0.23386353,103850.0,103840.0,0.44848528]
[1737208526056,0.127,103850.0,103840.0,0.44848528]
[1737208526394,0.1274277,103850.0,103840.0,0.44848528]
[1737208527441,0.19753339,103850.0,103840.0,0.44848528]
[1737208529060,0.19753339,103850.0,103840.0,0.438899]
[1737208531188,0.19753339,103850.0,103840.0,0.448899]
[1737208532962,0.19753339,103850.0,103840.0,0.298899]
[1737208542550,0.1274277,103850.0,103840.0,0.298899]
[1737208543957,0.0782277,103850.0,103840.0,0.298899]
[1737208547503,0.0004277,103850.0,103840.0,0.54200469]
[1737208547707,0.0004277,103850.0,103840.0,0.8167455]
[1737208547910,0.0004277,103850.0,103840.0,0.9167455]
[1737208549228,0.0004277,103850.0,103840.0,1.44511736]
[1737208549806,0.0004277,103850.0,103840.0,1.27501167]
[1737208549990,0.0004277,103850.0,103840.0,1.37501167]
[1737208550576,0.0004277,103850.0,103840.0,1.40466076]
[1737208550748,0.0004277,103850.0,103840.0,1.37501167]
[1737208551746,0.0004277,103850.0,103840.0,1.78895601]
[1737208552228,0.0004277,103850.0,103840.0,1.65931116]
[1737208552575,0.0004277,103850.0,103840.0,1.75931116]
[1737208555176,0.0004277,103850.0,103840.0,1.65931116]
[1737208556258,0.0004277,103850.0,103840.0,1.50931116]
[1737208556464,0.0004277,103850.0,103840.0,1.57941685]
[1737208558431,0.0004277,103850.0,103840.0,1.50931116]
[1737208559202,0.0004277,103850.0,103840.0,1.49400736]
[1737208565798,0.0004277,103850.0,103840.0,1.57927359]
[1737208567718,0.0004277,103850.0,103840.0,1.67927359]
[1737208568309,0.0004277,103850.0,103840.0,1.57927359]
[1737208568884,7e-07,103850.0,103840.0,1.89937928]
[1737208569099,7e-07,103850.0,103840.0,1.89022091]
[1737208570384,7e-07,103850.0,103840.0,1.79022091]
[1737208570825,7e-07,103850.0,103840.0,1.89022091]
[1737208570966,7e-07,103850.0,103840.0,1.63415113]
[1737208571309,0.00018677,103860.0,103850.0,0.319292]
[1737208571504,0.00018677,103860.0,103850.0,0.4886385]
[1737208572215,0.00018677,103860.0,103850.0,0.3886385]
[1737208572617,0.00018677,103860.0,103850.0,0.4886385]
[1737208572858,0.00018677,103860.0,103850.0,0.3886385]
[1737208573607,0.00018677,103860.0,103850.0,1.30026443]
[1737208574398,0.00018677,103860.0,103850.0,1.40026443]
[1737208574599,0.00018677,103860.0,103850.0,1.30026443]
[1737208574802,0.00018677,103860.0,103850.0,1.0871295]
[1737208575008,0.00018677,103860.0,103850.0,1.1871295]
[1737208575614,0.00018677,103860.0,103850.0,1.0871295]
[1737208575819,0.00018677,103860.0,103850.0,1.10490978]
[1737208576218,0.00018677,103860.0,103850.0,1.11471271]
[1737208576419,0.00018677,103860.0,103850.0,1.21471271]
[1737208576622,0.00018677,103860.0,103850.0,1.11471271]
[1737208577028,0.00018677,103860.0,103850.0,1.09693243]
[1737208577678,0.08098677,103860.0,103850.0,1.02682674]
[1737208578660,0.08098677,103860.0,103850.0,0.92682674]
[1737208579600,0.08098677,103860.0,103850.0,0.94564268]
[1737208580642,0.08098677,103860.0,103850.0,0.77513474]
[1737208582188,0.08098677,103860.0,103850.0,0.80478415]
[1737208582584,0.08098677,103860.0,103850.0,0.78596821]
[1737208582811,0.08098677,103860.0,103850.0,0.7563188]
[1737208583349,0.08098677,103860.0,103850.0,0.78596981]
[1737208584743,0.00018677,103860.0,103850.0,0.8560755]
[1737208584945,0.00018677,103860.0,103850.0,1.0560755]
[1737208585153,0.00018677,103860.0,103850.0,1.1031755]
[1737208586379,0.00018677,103860.0,103850.0,1.1040743]
[1737208586759,0.00018677,103860.0,103850.0,1.1865743]
[1737208586957,0.00018677,103860.0,103850.0,1.35708224]
[1737208588118,0.00018677,103860.0,103850.0,1.47021717]
[1737208588327,0.00018677,103860.0,103850.0,1.57021717]
[1737208588539,0.00018677,103860.0,103850.0,1.47021717]
[1737208589166,0.00018677,103860.0,103850.0,1.40708224]
[1737208590162,7.7e-07,103860.0,103850.0,1.40708224]
[1737208590392,7.7e-07,103860.0,103850.0,1.2365743]
[1737208592185,7.7e-07,103860.0,103850.0,1.27978332]
[1737208597736,7.7e-07,103860.0,103850.0,1.20967763]
[1737208597908,7.7e-07,103860.0,103850.0,1.15574332]
[1737208604671,7.7e-07,103860.0,103850.0,1.36929614]
[1737208609995,7.7e-07,103860.0,103850.0,1.15574332]
[1737208612019,9.7e-07,103880.0,103870.0,0.2]
[1737208612222,4e-05,103890.0,103880.0,0.369264]
[1737208612427,0.00019114,103890.0,103880.0,0.64394074]
[1737208613052,1.4e-07,103890.0,103880.0,0.64394074]
[1737208613586,1.4e-07,103890.0,103880.0,1.21513282]
[1737208614941,7.4e-07,103900.0,103880.0,1.11886882]
[1737208615145,7.4e-07,103900.0,103890.0,0.43956382]
[1737208615370,7.4e-07,103900.0,103890.0,0.56826605]
[1737208615569,7.4e-07,103900.0,103890.0,0.5386015]
[1737208615783,7.4e-07,103900.0,103890.0,0.56819513]
[1737208616223,7.4e-07,103900.0,103890.0,0.5386015]
[1737208616522,7.4e-07,103900.0,103890.0,0.85229341]
[1737208616681,7.4e-07,103900.0,103890.0,0.9223991]
[1737208616888,7.4e-07,103900.0,103890.0,0.85229341]
[1737208617095,7.4e-07,103900.0,103890.0,0.75229341]
[1737208617272,0.12610074,103900.0,103890.0,0.75229341]
[1737208617702,0.12610074,103900.0,103890.0,1.28016307]
[1737208619096,0.34048521,103950.0,103940.0,0.196209]
[1737208619310,0.30200521,103950.0,103940.0,0.73648778]
[1737208619516,0.0875241,103950.0,103940.0,0.9137504]
[1737208619775,0.06930118,103960.0,103950.0,0.52262352]
[1737208619982,0.03825347,103960.0,103950.0,1.27690116]
[1737208620190,0.4930243,103970.0,103960.0,0.46891583]
[1737208620394,0.49317538,103970.0,103960.0,0.59763203]
[1737208620624,0.46917538,103970.0,103960.0,0.56773772]
[1737208620837,0.00326947,103980.0,103960.0,0.56773772]
[1737208620838,0.00326947,103980.0,103970.0,0.09972583]
[1737208621040,0.00326947,103980.0,103970.0,0.58535902]
[1737208621244,4.7e-07,103980.0,103970.0,0.60835902]
[1737208621392,8.9e-07,104010.0,104000.0,0.44587883]
[1737208621555,0.00015183,104010.0,104000.0,0.57455016]
[1737208621770,0.00015183,104010.0,104000.0,0.46811964]
[1737208621997,0.00015183,104010.0,104000.0,0.36839381]
[1737208622392,0.00015183,104010.0,104000.0,0.57455016]
[1737208622798,8.3e-07,104030.0,104020.0,0.29586083]
[1737208623002,0.00085834,104050.0,104040.0,0.44584183]
[1737208623204,0.0156688,104060.0,104050.0,0.36883283]
[1737208623205,0.01558098,104060.0,104050.0,0.36883283]
[1737208623431,0.01558098,104060.0,104050.0,0.57450416]
[1737208623432,0.02043326,104060.0,104050.0,0.57450416]
[1737208623627,0.01608391,104060.0,104050.0,0.46807364]
[1737208623831,0.02043326,104060.0,104050.0,0.57450416]
[1737208624269,0.02043326,104060.0,104050.0,0.67450416]
[1737208624470,0.02043326,104060.0,104050.0,0.57450416]
[1737208624846,0.01608391,104060.0,104050.0,0.9535777]
[1737208625047,0.01608391,104060.0,104050.0,1.26678633]
[1737208625263,0.00098383,104070.0,104060.0,0.34582383]
[1737208625477,0.00098383,104070.0,104060.0,0.55633471]
[1737208625706,0.00533318,104070.0,104060.0,0.57933471]
[1737208625865,0.00098383,104070.0,104060.0,0.57933471]
[1737208626072,0.09773587,104110.0,104100.0,0.196061]
[1737208626285,0.09788672,104110.0,104100.0,0.196061]
[1737208626489,0.08208325,104110.0,104100.0,0.096061]
[1737208626896,0.08208325,104110.0,104100.0,0.196061]
[1737208627153,0.08208325,104110.0,104100.0,0.096061]
[1737208627549,0.08208325,104110.0,104090.0,0.480317]
[1737208627760,0.18851377,104110.0,104100.0,0.096061]
[1737208627951,0.10643052,104110.0,104090.0,0.38743181]
[1737208628211,0.30892404,104100.0,104080.0,0.096076]
[1737208628408,0.10643052,104090.0,104080.0,0.00015085]
[1737208628628,0.20250052,104090.0,104080.0,0.00015085]
[1737208628926,0.45617185,104090.0,104080.0,0.00015085]
[1737208629145,0.55617185,104090.0,104080.0,0.00015085]
[1737208629317,0.65617185,104090.0,104080.0,0.00015085]
[1737208629518,0.096089,104070.0,104060.0,0.0951]
[1737208629721,0.30895004,104070.0,104060.0,0.0951]
[1737208630498,0.40819085,104070.0,104060.0,0.0951]
[1737208630720,0.40819085,104070.0,104020.0,0.288395]
[1737208630721,0.096118,104040.0,104020.0,0.288395]
[1737208630965,0.11234888,104030.0,104020.0,0.288395]
[1737208631183,0.11234888,104030.0,104020.0,0.096132]
[1737208631395,0.26177219,104030.0,104010.0,0.288416]
[1737208631594,0.26177219,104030.0,104010.0,0.38765681]
[1737208631595,0.15972583,104020.0,104010.0,0.38765681]
[1737208631805,0.16560666,104020.0,104010.0,0.53765681]
[1737208632001,0.16560666,104020.0,104010.0,0.53815974]
[1737208632207,0.16560666,104020.0,104010.0,0.38815974]
[1737208632835,0.16560666,104020.0,104010.0,0.53815974]
[1737208634312,0.00588083,104020.0,104010.0,0.53815974]
[1737208636863,0.16560666,104020.0,104010.0,0.53815974]
[1737208636994,0.16560666,104020.0,104010.0,0.43891893]
[1737208638346,0.00588083,104020.0,104010.0,0.43891893]
[1737208638567,0.15972583,104020.0,104010.0,0.34277993]
[1737208638729,0.0057398,104020.0,104010.0,0.43892393]
[1737208639622,0.288367,104040.0,104020.0,0.09613]
[1737208639827,0.54733364,104040.0,104020.0,0.09613]
[1737208640094,0.73957664,104040.0,104020.0,0.288395]
[1737208640417,0.73957664,104040.0,104020.0,0.480665]
[1737208641456,0.15972583,104030.0,104020.0,0.288395]
[1737208641663,0.52616183,104050.0,104030.0,0.192246]
[1737208641864,0.81762564,104050.0,104030.0,0.288367]
[1737208642094,0.15972583,104040.0,104030.0,0.288367]
[1737208642638,0.44808283,104040.0,104020.0,0.480642]
[1737208642810,0.15972583,104030.0,104020.0,0.288381]
[1737208643017,0.44808283,104040.0,104030.0,0.096126]
[1737208643624,0.73956764,104040.0,104020.0,0.480643]
[1737208644148,0.73956764,104040.0,104030.0,0.096126]
[1737208644149,0.15972583,104040.0,104030.0,0.096126]
[1737208645113,0.25584183,104040.0,104030.0,0.096126]
[1737208646180,0.44808083,104040.0,104020.0,0.581673]
[1737208646455,0.44808083,104040.0,104030.0,0.096126]
[1737208646616,0.15972583,104040.0,104030.0,0.096126]
[1737208646815,0.71838983,104050.0,104030.0,0.480615]
[1737208647020,0.81763064,104050.0,104030.0,0.480615]
[1737208647458,0.43318164,104050.0,104030.0,0.576729]
[1737208647623,0.65533318,104060.0,104040.0,0.096116]
[1737208647831,0.25583283,104050.0,104040.0,0.096116]
[1737208648434,0.4712225,104050.0,104040.0,0.096116]
[1737208649584,0.00128521,104090.0,104040.0,0.60278681]
[1737208649791,0.01009898,104120.0,104110.0,0.546052]
[1737208650034,4e-08,104150.0,104140.0,0.3]
[1737208650256,4e-08,104150.0,104140.0,0.55574983]
[1737208650557,4e-08,104150.0,104140.0,0.57799064]
[1737208650751,4e-08,104150.0,104140.0,0.58375064]
[1737208651110,0.00015083,104150.0,104140.0,0.58375064]
[1737208651512,0.00015083,104150.0,104140.0,0.57799064]
[1737208651785,8.3e-07,104150.0,104140.0,0.73375064]
[1737208652594,6e-07,104170.0,104160.0,0.346006]
[1737208652793,0.00050313,104170.0,104160.0,0.86469847]
[1737208653537,1.3e-07,104170.0,104160.0,0.88769847]
[1737208654159,1.3e-07,104170.0,104160.0,1.01085251]
[1737208654409,1.3e-07,104170.0,104160.0,0.91085251]
[1737208654752,1.3e-07,104170.0,104160.0,0.92203491]
[1737208655197,1.3e-07,104170.0,104160.0,0.92235491]
[1737208656051,0.0004278,104180.0,104160.0,0.80334891]
[1737208656182,0.0004278,104180.0,104170.0,0.35592229]
[1737208656390,0.0004278,104180.0,104170.0,0.37796264]
[1737208657389,0.0084,104230.0,104210.0,0.195958]
[1737208657637,0.296227,104230.0,104210.0,0.1]
[1737208657812,0.45610361,104230.0,104210.0,0.195959]
[1737208658347,0.00855078,104230.0,104220.0,0.29519081]
[1737208658470,0.16827661,104230.0,104220.0,0.19924081]
[1737208658674,0.26422061,104230.0,104210.0,0.195951]
[1737208658876,0.26422061,104230.0,104210.0,0.29519181]
[1737208659101,0.45610561,104230.0,104210.0,0.29519181]
[1737208659299,0.45610561,104230.0,104210.0,0.48711081]
[1737208659747,0.26422061,104230.0,104210.0,0.48711081]
[1737208660128,0.45610461,104230.0,104210.0,0.29519181]
[1737208660311,0.45610461,104230.0,104210.0,0.48711181]
[1737208660709,0.26422061,104230.0,104210.0,0.48711181]
[1737208661333,0.26421861,104230.0,104210.0,0.48711181]
[1737208661507,0.16827661,104230.0,104210.0,0.48711181]
[1737208661911,0.26421961,104230.0,104210.0,0.48711181]
[1737208662094,0.16827661,104230.0,104210.0,0.48711181]
[1737208662490,0.25567583,104220.0,104210.0,0.1]
[1737208663145,0.15972583,104220.0,104210.0,0.29520081]
[1737208663503,0.26422461,104230.0,104210.0,0.29520081]
[1737208663708,0.15972583,104220.0,104210.0,0.29520081]
[1737208664264,0.55610861,104230.0,104210.0,0.29520081]
[1737208664618,0.45610861,104230.0,104210.0,0.29520081]
[1737208664823,0.45610861,104230.0,104210.0,0.19924081]
[1737208665023,0.55610861,104230.0,104210.0,0.19924081]
[1737208665241,0.45610861,104230.0,104210.0,0.29519981]
[1737208665643,0.10449878,104230.0,104210.0,0.48711881]
[1737208665848,0.15972583,104220.0,104210.0,0.29519981]
[1737208666067,0.29638678,104230.0,104210.0,0.29519981]
[1737208666264,0.45611261,104230.0,104210.0,0.29519981]
[1737208666680,0.45611261,104230.0,104220.0,0.1]
[1737208666681,0.16827661,104230.0,104220.0,0.1]